[Event "Condigne Dutch Open 2018"]
[Site "Dieren"]
[Date "2018.08.01"]
[Round "8"]
[White "Van Roon, Sjoerd"]
[Black "Krishnater Kushager"]
[Result "0-1"]
[ECO "C54"]
[WhiteElo "2100"]
[BlackElo "2209"]
[Annotator "NA"]
[PlyCount "66"]
[EventDate "2018.07.24"]
[EventType "swiss"]
[EventCountry "NED"]
[SourceTitle "playchess.com"]
[Source "ChessBase"]
[SourceQuality "1"]
[TimeControl "40/5400+30:1800+30"]

1. e4 {[%emt 0:00:00]} e5 {[%emt 0:00:00]} 2. Nf3 {[%emt 0:00:00]} Nc6 {[%emt 0:00:00]} 3. Bc4 {[%emt 0:00:00]} Bc5 {[%emt 0:00:00]} 4. d3 {[%emt 0:00:15]} Nf6 {[%emt 0:00:00]} 5. c3 {[%emt 0:00:30]} a6 {[%emt 0:00:00]} 6. a4 {[%emt 0:00:04]} d6 {[%emt 0:00:49]} 7. O-O {[%emt 0:01:32]} O-O {[%emt 0:00:09]} 8. Bg5 {[%emt 0:00:28]} Be6 {[%emt 0:03:22]} 9. Nbd2 {[%emt 0:02:08]} a5 {[%emt 0:04:55]} 10. Qb3 {[%emt 0:16:44]} Qd7 {[%emt 0:01:39]} 11. Bxf6 {[%emt 0:01:42]} gxf6 {[%emt 0:00:11]} 12. Nh4 {[%emt 0:01:20]} Kh8 {[%emt 0:05:09]} 13. Kh1 {[%emt 0:00:19]} Rg8 {[%emt 0:02:32]} 14. f4 {[%emt 0:14:16]} Be3 {[%emt 0:00:56]} 15. f5 {[%emt 0:00:27]} Bxc4 {[%emt 0:00:20]} 16. Nxc4 {[%emt 0:00:21]} Bg5 {[%emt 0:06:45]} 17. Nf3 {[%emt 0:02:37]} Bh6 {[%emt 0:00:36]} 18. Qb5 {[%emt 0:08:27]} Rgd8 {[%emt 0:07:56]} 19. Ne1 {[%emt 0:08:17]} d5 {[%emt 0:03:04]} 20. exd5 {[%emt 0:04:01]} Qxd5 {[%emt 0:00:22]} 21. Qxb7 {[%emt 0:04:37]} e4 {[%emt 0:11:12]} 22. Qxc7 {[%emt 0:03:02]} Ra7 {[%emt 0:00:33]} 23. Qg3 {[%emt 0:09:47]} exd3 {[%emt 0:00:12]} 24. b3 {[%emt 0:00:14]} d2 {[%emt 0:09:10]} 25. Nf3 {[%emt 0:01:05]} d1=Q {[%emt 0:00:11]} 26. Raxd1 {[%emt 0:00:08]} Qxd1 {[%emt 0:00:03]} 27. Rxd1 {[%emt 0:00:23]} Rxd1+ {[%emt 0:00:03]} 28. Ng1 {[%emt 0:00:08]} Re7 {[%emt 0:00:02]} 29. h3 {[%emt 0:08:58]} Ree1 {[%emt 0:01:02]} 30. Qf3 {[%emt 0:02:19]} Rxg1+ {[%emt 0:00:26]} 31. Kh2 {[%emt 0:00:04]} Rdf1 {[%emt 0:00:14]} 32. Qxc6 {[%emt 0:05:14]} Bf4+ {[%emt 0:00:05]} 33. g3 {[%emt 0:00:02]} Bxg3# {[%emt 0:00:03]} 0-1

[Event "Condigne Dutch Open 2018"]
[Site "Dieren"]
[Date "2018.08.02"]
[Round "9"]
[White "Van Foreest, Lucas"]
[Black "Chanda, Sandipan"]
[Result "*"]
[ECO "A80"]
[WhiteElo "2488"]
[BlackElo "2548"]
[Annotator "RC"]
[PlyCount "20"]
[EventDate "2018.07.24"]
[EventType "swiss"]
[EventCountry "NED"]
[SourceTitle "playchess.com"]
[Source "ChessBase"]
[SourceQuality "1"]
[TimeControl "40/5400+30:1800+30"]

1. d4 {[%emt 0:00:00]} f5 {[%emt 0:00:00]} 2. Nc3 {[%emt 0:00:00]} Nf6 {[%emt 0:00:04]} 3. Bg5 {[%emt 0:00:00]} d5 {[%emt 0:00:12]} 4. e3 {[%emt 0:00:00]} e6 {[%emt 0:00:22]} 5. Nf3 {[%emt 0:00:00]} Be7 {[%emt 0:00:22]} 6. Bd3 {[%emt 0:00:06]} O-O {[%emt 0:00:36]} 7. O-O {[%emt 1:33:24]} h6 {[%emt 0:01:11]} 8. Bh4 {[%emt 0:01:38]} Nbd7 {[%emt 0:04:14]} 9. Ne2 {[%emt 1:32:13]} g5 {[%emt 0:01:38]} 10. Bg3 {[%emt 0:00:46]} Nh5 {[%emt 0:00:54]} *

[Event "Condigne Dutch Open 2018"]
[Site "Dieren"]
[Date "2018.08.02"]
[Round "9"]
[White "Geurink, Jasper"]
[Black "Sparenberg, Erik"]
[Result "1/2-1/2"]
[ECO "B07"]
[WhiteElo "2348"]
[BlackElo "2173"]
[Annotator "NA"]
[PlyCount "82"]
[EventDate "2018.07.24"]
[EventType "swiss"]
[EventCountry "NED"]
[SourceTitle "playchess.com"]
[Source "ChessBase"]
[SourceQuality "1"]
[TimeControl "40/5400+30:1800+30"]

1. e4 {[%emt 0:00:00]} g6 {[%emt 0:00:00]} 2. d4 {[%emt 0:00:00]} Bg7 {[%emt 0:00:00]} 3. c3 {[%emt 0:00:00]} d6 {[%emt 0:00:34]} 4. Nf3 {[%emt 0:00:00]} Nf6 {[%emt 0:01:20]} 5. Bd3 {[%emt 0:00:00]} O-O {[%emt 0:00:27]} 6. O-O {[%emt 0:00:05]} Nbd7 {[%emt 0:01:01]} 7. Re1 {[%emt 0:00:41]} e5 {[%emt 0:00:07]} 8. d5 {[%emt 0:00:06]} Nh5 {[%emt 0:18:18]} 9. Bf1 {[%emt 0:03:15]} Qe8 {[%emt 0:04:26]} 10. c4 {[%emt 0:03:27]} f5 {[%emt 0:08:11]} 11. exf5 {[%emt 0:01:13]} gxf5 {[%emt 0:00:03]} 12. Ng5 {[%emt 0:00:18]} Ndf6 {[%emt 0:06:49]} 13. c5 {[%emt 0:03:54]} dxc5 {[%emt 0:10:29]} 14. Qb3 {[%emt 0:02:32]} b6 {[%emt 0:09:19]} 15. Bb5 {[%emt 0:03:09]} Qg6 {[%emt 0:03:50]} 16. Bc6 {[%emt 0:01:59]} Rb8 {[%emt 0:00:55]} 17. Nc3 {[%emt 0:09:09]} Kh8 {[%emt 0:05:04]} 18. Ne6 {[%emt 0:02:24]} Rg8 {[%emt 0:01:27]} 19. g3 {[%emt 0:00:34]} Ng4 {[%emt 0:02:21]} 20. Ne2 {[%emt 0:03:42]} Bxe6 {[%emt 0:03:44]} 21. dxe6 {[%emt 0:00:07]} e4 {[%emt 0:00:58]} 22. Nf4 {[%emt 0:05:37]} Nxf4 {[%emt 0:00:54]} 23. Bxf4 {[%emt 0:00:05]} Bd4 {[%emt 0:00:28]} 24. Kg2 {[%emt 0:00:21]} Qh5 {[%emt 0:02:49]} 25. h4 {[%emt 0:03:07]} Nxf2 {[%emt 0:00:23]} 26. Rad1 {[%emt 0:00:21]} Nxd1 {[%emt 0:03:42]} 27. Rxd1 {[%emt 0:00:07]} Qe2+ {[%emt 0:03:52]} 28. Kh1 {[%emt 0:00:23]} Rg4 {[%emt 0:04:30]} 29. Bb5 {[%emt 0:01:40]} Qf2 {[%emt 0:03:45]} 30. Rf1 {[%emt 0:01:13]} Qxb2 {[%emt 0:00:20]} 31. Qxb2 {[%emt 0:01:25]} Bxb2 {[%emt 0:00:02]} 32. Bxc7 {[%emt 0:01:36]} Rc8 {[%emt 0:01:11]} 33. e7 {[%emt 0:00:28]} Rgg8 {[%emt 0:00:35]} 34. Bd6 {[%emt 0:00:06]} c4 {[%emt 0:03:33]} 35. Rxf5 {[%emt 0:00:09]} Bg7 {[%emt 0:00:01]} 36. Bd7 {[%emt 0:05:54]} Ra8 {[%emt 0:01:45]} 37. Re5 {[%emt 0:01:07]} c3 {[%emt 0:00:33]} 38. Rxe4 {[%emt 0:00:05]} Rge8 {[%emt 0:00:37]} 39. Rc4 {[%emt 0:00:27]} Bf6 {[%emt 0:00:17]} 40. Bxe8 {[%emt 0:01:12]} Rxe8 {[%emt 0:00:03]} 41. Bb4 {[%emt 0:30:08]} Kg7 {[%emt 0:31:15]} 1/2-1/2

[Event "Condigne Dutch Open 2018"]
[Site "Dieren"]
[Date "2018.08.02"]
[Round "9"]
[White "Wiersma, Eelke"]
[Black "Zwirs, Jasper"]
[Result "1/2-1/2"]
[ECO "B51"]
[WhiteElo "2346"]
[BlackElo "2124"]
[Annotator "NA"]
[PlyCount "29"]
[EventDate "2018.07.24"]
[EventType "swiss"]
[EventCountry "NED"]
[SourceTitle "playchess.com"]
[Source "ChessBase"]
[SourceQuality "1"]
[TimeControl "40/5400+30:1800+30"]

1. e4 {[%emt 0:00:00]} c5 {[%emt 0:00:00]} 2. Nf3 {[%emt 0:00:00]} d6 {[%emt 0:00:00]} 3. Bb5+ {[%emt 0:00:02]} Nc6 {[%emt 0:01:04]} 4. Bxc6+ {[%emt 0:00:21]} bxc6 {[%emt 0:00:06]} 5. O-O {[%emt 0:00:07]} Bg4 {[%emt 0:11:07]} 6. h3 {[%emt 0:01:01]} Bh5 {[%emt 0:02:06]} 7. e5 {[%emt 0:00:11]} e6 {[%emt 0:01:38]} 8. exd6 {[%emt 0:00:31]} Bxd6 {[%emt 0:00:28]} 9. d3 {[%emt 0:00:29]} Nf6 {[%emt 0:00:59]} 10. Nbd2 {[%emt 0:00:11]} O-O {[%emt 0:04:03]} 11. Qe2 {[%emt 0:01:04]} Qc7 {[%emt 0:23:06]} 12. Nc4 {[%emt 0:06:52]} Rae8 {[%emt 0:02:36]} 13. Bd2 {[%emt 0:22:38]} e5 {[%emt 0:10:13]} 14. Rad1 {[%emt 0:01:22]} Nd5 {[%emt 0:13:02]} 15. g4 {[%emt 0:06:24]} 1/2-1/2

[Event "Condigne Dutch Open 2018"]
[Site "Dieren"]
[Date "2018.08.02"]
[Round "9"]
[White "Van Osch, Mees"]
[Black "Miedema, David"]
[Result "1/2-1/2"]
[ECO "C15"]
[WhiteElo "2324"]
[BlackElo "2370"]
[Annotator "NA"]
[PlyCount "136"]
[EventDate "2018.07.24"]
[EventType "swiss"]
[EventCountry "NED"]
[SourceTitle "playchess.com"]
[Source "ChessBase"]
[SourceQuality "1"]
[TimeControl "40/5400+30:1800+30"]

1. e4 {[%emt 0:00:00]} e6 {[%emt 0:04:12]} 2. d4 {[%emt 0:00:00]} d5 {[%emt 0:00:03]} 3. Nc3 {[%emt 0:00:00]} Bb4 {[%emt 0:00:04]} 4. Nge2 {[%emt 0:00:00]} dxe4 {[%emt 0:00:05]} 5. a3 {[%emt 0:00:00]} Bxc3+ {[%emt 0:00:02]} 6. Nxc3 {[%emt 0:00:00] LiveBook: 451 Games} Nc6 {[%emt 0:00:03]} 7. d5 {[%emt 0:00:02]} exd5 {[%emt 0:00:05]} 8. Qxd5 {[%emt 0:00:04]} Be6 {[%emt 0:00:04] C15: French: 3 Nc3 Bb4: Unusual White 4th moves} 9. Qxe4 {[%emt 0:00:05]} Nf6 {[%emt 0:00:03]} 10. Qa4 {[%emt 0:00:03]} (10. Qh4 Qd4 11. Qxd4 Nxd4 12. Bd3 Bf5 13. Bxf5 Nxf5 14. Bg5 O-O-O 15. O-O Rhe8 16. Bxf6 gxf6 {½-½ (40) Kulaots,K (2577)-Cuenca Jimenez,J (2513) Lund 2017}) 10... Qe7 {[%emt 0:00:50]} 11. Be2 {[%emt 0:01:06]} Nd5 $146 {[%emt 0:32:42]} ({Predecessor:} 11... Bg4 12. f3 Be6 13. Bd2 Qc5 14. O-O-O O-O 15. Qb5 Qe7 16. Bg5 {½-½ (57) Kachibadze,G (1977)-Teschke,O (2228) Berlin 2006}) 12. Bd2 {[%emt 0:12:24]} Nb6 {[%emt 0:00:14]} 13. Qf4 {[%emt 0:01:35]} O-O-O {[%emt 0:58:03]} 14. O-O-O {[%emt 0:03:35]} Nd4 {[%emt 0:00:00]} 15. Rhe1 {[%emt 0:04:24]} Nxe2+ {[%emt 0:00:00]} 16. Rxe2 {[%emt 0:00:29]} Qc5 {[%emt 0:00:00]} 17. Be3 {[%emt 0:15:42]} Rxd1+ {[%emt 0:00:00]} 18. Kxd1 {[%emt 0:00:13]} Nd5 {[%emt 0:00:00]} 19. Qd4 {[%emt 0:21:36]} Nxe3+ {[%emt 0:00:00]} 20. Qxe3 {[%emt 0:00:04]} Rd8+ {[%emt 0:00:00]} 21. Kc1 {[%emt 0:01:31]} Qd4 {[%emt 0:00:00]} 22. Rd2 {[%emt 0:04:06]} Qxe3 {[%emt 0:00:00]} 23. fxe3 {[%emt 0:00:18]} Re8 {[%emt 0:00:00]} 24. e4 {[%emt 0:00:29]} f6 {[%emt 0:00:00]} 25. Kd1 {[%emt 0:03:56]} Bg4+ {[%emt 0:00:00]} 26. Ke1 {[%emt 0:00:04]} f5 {[%emt 0:00:00]} 27. Kf2 {[%emt 0:01:21]} f4 {[%emt 0:00:00]} 28. g3 {[%emt 0:06:29]} fxg3+ {[%emt 0:00:00]} 29. Kxg3 {[%emt 0:00:05]} Bd7 {[%emt 0:00:00]} 30. Kf4 {[%emt 0:01:10]} Rf8+ {[%emt 0:00:00]} 31. Ke3 {[%emt 0:03:11]} Be6 {[%emt 0:00:00]} 32. Nb5 {[%emt 0:08:56]} a6 {[%emt 0:00:00]} 33. Nd4 {[%emt 0:00:04]} Bh3 {[%emt 0:00:00]} 34. b4 {[%emt 0:03:53]} b6 {[%emt 0:03:32]} 35. c4 {[%emt 0:00:59]} Rf1 {[%emt 0:03:08]} 36. e5 {[%emt 0:07:26]} Rc1 {[%emt 0:02:26]} 37. Rf2 {[%emt 0:02:01]} c5 {[%emt 0:00:53]} 38. bxc5 {[%emt 0:00:50]} bxc5 {[%emt 0:00:04]} 39. Ne2 {[%emt 0:00:24]} Rxc4 {[%emt 0:00:14]} 40. Rf7 {[%emt 0:00:47]} Ra4 {[%emt 0:02:20]} 41. Nf4 $11 {[%emt 0:01:23]} Rxa3+ {[%emt 0:09:03]} 42. Ke4 {[%emt 0:02:04]} c4 {[%emt 0:05:02]} 43. e6 {[%emt 0:03:50]} c3 {[%emt 0:04:23]} 44. Rf8+ {[%emt 0:07:34]} Kc7 {[%emt 0:03:23]} 45. e7 {[%emt 0:03:22]} Bd7 {[%emt 0:00:45]} 46. Nd5+ {[%emt 0:00:50]} Kd6 {[%emt 0:00:45]} 47. Rd8 {[%emt 0:02:16]} Ke6 {[%emt 0:03:52]} 48. e8=Q+ {[%emt 0:01:06]} Bxe8 {[%emt 0:00:06]} 49. Rxe8+ {[%emt 0:00:04]} Kd7 {[%emt 0:00:05]} 50. Rf8 {[%emt 0:02:57]} c2 {[%emt 0:00:29]} 51. Rf1 {[%emt 0:00:24]} Rh3 {[%emt 0:00:51]} 52. Rc1 {[%emt 0:01:17]} Rxh2 {[%emt 0:00:05]} 53. Ne3 {[%emt 0:00:05]} Ke6 {[%emt 0:00:09]} 54. Nxc2 {[%emt 0:00:19]} Rh4+ {[%emt 0:00:07]} 55. Kd3 {[%emt 0:01:05]} Ra4 {[%emt 0:00:26]} 56. Ne3 {[%emt 0:00:54]} h5 {[%emt 0:00:49]} 57. Rc6+ {[%emt 0:00:09]} Kf7 {[%emt 0:00:37]} 58. Nf5 {[%emt 0:01:04]} g6 {[%emt 0:01:26]} 59. Nd6+ {[%emt 0:00:17]} Kg7 {[%emt 0:01:31]} 60. Rc7+ {[%emt 0:01:16]} Kf6 {[%emt 0:00:11]} 61. Ne4+ {[%emt 0:01:44]} Kf5 {[%emt 0:01:22]} 62. Rf7+ {[%emt 0:00:14]} Ke6 {[%emt 0:00:12]} 63. Rg7 {[%emt 0:02:02]} Ke5 {[%emt 0:02:21]} 64. Re7+ {[%emt 0:00:30]} Kf4 {[%emt 0:00:31]} 65. Rf7+ {[%emt 0:00:07]} Kg4 {[%emt 0:01:20]} 66. Rg7 {[%emt 0:00:59]} Ra3+ {[%emt 0:00:29]} 67. Kd4 {[%emt 0:00:21]} Kf3 {[%emt 0:00:27]} 68. Rf7+ {[%emt 0:01:34]} Kg4 {[%emt 0:00:49]} 1/2-1/2

[Event "Condigne Dutch Open 2018"]
[Site "Dieren"]
[Date "2018.08.02"]
[Round "9"]
[White "Van Dael, Siem"]
[Black "De Jong, Migchiel"]
[Result "1-0"]
[ECO "C18"]
[WhiteElo "2212"]
[BlackElo "2339"]
[Annotator "NA"]
[PlyCount "177"]
[EventDate "2018.07.24"]
[EventType "swiss"]
[EventCountry "NED"]
[SourceTitle "playchess.com"]
[Source "ChessBase"]
[SourceQuality "1"]
[TimeControl "40/5400+30:1800+30"]

1. e4 {[%emt 0:00:00]} e6 {[%emt 0:00:00]} 2. d4 {[%emt 0:00:00]} d5 {[%emt 0:00:00]} 3. Nc3 {[%emt 0:00:00]} Bb4 {[%emt 0:00:14]} 4. e5 {[%emt 0:00:00]} Ne7 {[%emt 0:00:07]} 5. a3 {[%emt 0:00:00]} Bxc3+ {[%emt 0:00:08]} 6. bxc3 {[%emt 0:00:00]} c5 {[%emt 0:00:23]} 7. Qg4 {[%emt 0:00:00]} Kf8 {[%emt 0:00:30]} 8. h4 {[%emt 0:01:21]} Qc7 {[%emt 0:02:20]} 9. Bd2 {[%emt 0:01:54]} cxd4 {[%emt 0:04:50]} 10. cxd4 {[%emt 0:00:07]} Qxc2 {[%emt 0:00:08]} 11. Rc1 {[%emt 0:00:38]} Qe4+ {[%emt 0:00:21]} 12. Qxe4 {[%emt 0:00:37]} dxe4 {[%emt 0:00:07]} 13. g3 {[%emt 0:20:09]} Nbc6 {[%emt 0:01:04]} 14. Bg2 {[%emt 0:00:23]} Nxd4 {[%emt 0:01:13]} 15. Bxe4 {[%emt 0:00:08]} Ndc6 {[%emt 0:01:24]} 16. Bb4 {[%emt 0:01:10]} Bd7 {[%emt 0:00:59]} 17. Bd6 {[%emt 0:01:55]} Ke8 {[%emt 0:00:25]} 18. Ne2 {[%emt 0:01:46]} Rc8 {[%emt 0:02:07]} 19. O-O {[%emt 0:04:46]} Na5 {[%emt 0:09:06]} 20. Nd4 {[%emt 0:02:05]} Nec6 {[%emt 0:01:43]} 21. Ne2 {[%emt 0:10:37]} Nb3 {[%emt 0:03:17]} 22. Rc2 {[%emt 0:03:02]} b6 {[%emt 0:05:08]} 23. Rd1 {[%emt 0:02:33]} Ne7 {[%emt 0:04:05]} 24. Rxc8+ {[%emt 0:03:59]} Nxc8 {[%emt 0:00:12]} 25. Bc7 {[%emt 0:00:07]} Nc5 {[%emt 0:01:38]} 26. Nc3 {[%emt 0:10:20]} Ke7 {[%emt 0:01:06]} 27. Bd3 {[%emt 0:08:01]} Nxd3 {[%emt 0:02:47]} 28. Rxd3 {[%emt 0:00:06]} Bc6 {[%emt 0:00:05]} 29. a4 {[%emt 0:04:49]} h5 {[%emt 0:04:07]} 30. Rd4 {[%emt 0:05:06]} f5 {[%emt 0:02:31]} 31. Kf1 {[%emt 0:09:18]} Kf7 {[%emt 0:01:52]} 32. Bb8 {[%emt 0:00:32]} Re8 {[%emt 0:01:36]} 33. Ke1 {[%emt 0:07:42]} a6 {[%emt 0:02:15]} 34. Rc4 {[%emt 0:01:58]} Ne7 {[%emt 0:00:58]} 35. Ba7 {[%emt 0:00:54]} b5 {[%emt 0:01:26]} 36. Rd4 {[%emt 0:01:24]} bxa4 {[%emt 0:00:56]} 37. Nxa4 {[%emt 0:00:21]} Bxa4 {[%emt 0:00:55]} 38. Rxa4 {[%emt 0:00:07]} Ra8 {[%emt 0:00:28]} 39. Bc5 {[%emt 0:00:32]} Nd5 {[%emt 0:00:47]} 40. Kd2 {[%emt 0:00:57]} Ke8 {[%emt 0:00:29]} 41. Ra1 {[%emt 0:03:41]} Kd7 {[%emt 0:01:10]} 42. Bd6 {[%emt 0:02:27]} a5 {[%emt 0:00:37]} 43. Kd3 {[%emt 0:01:09]} a4 {[%emt 0:00:51]} 44. Kc4 {[%emt 0:01:25]} Kc6 {[%emt 0:00:16]} 45. Rb1 {[%emt 0:03:06]} a3 {[%emt 0:00:28]} 46. Kb3 {[%emt 0:01:00]} a2 {[%emt 0:00:07]} 47. Rc1+ {[%emt 0:04:56]} Kb5 {[%emt 0:01:07]} 48. Ra1 {[%emt 0:01:39]} Nb6 {[%emt 0:01:30]} 49. Ba3 {[%emt 0:03:05]} Nc4 {[%emt 0:13:47]} 50. Rxa2 {[%emt 0:00:48]} g6 {[%emt 0:01:25]} 51. f4 {[%emt 0:05:44]} Ra4 {[%emt 0:01:18]} 52. Ra1 {[%emt 0:00:11]} Nd2+ {[%emt 0:01:15]} 53. Kc2 {[%emt 0:00:28]} Ne4 {[%emt 0:00:06]} 54. Rb1+ {[%emt 0:00:43]} Kc6 {[%emt 0:02:06]} 55. Rb3 {[%emt 0:01:45]} Rd4 {[%emt 0:00:41]} 56. Bc1 {[%emt 0:01:26]} Rc4+ {[%emt 0:00:19]} 57. Kb2 {[%emt 0:00:34]} Nc5 {[%emt 0:00:30]} 58. Ra3 {[%emt 0:01:30]} Kd5 {[%emt 0:01:23]} 59. Be3 {[%emt 0:00:55]} Ne4 {[%emt 0:05:16]} 60. Ra5+ {[%emt 0:00:07]} Kc6 {[%emt 0:00:19]} 61. Ra6+ {[%emt 0:00:08]} Kd7 {[%emt 0:00:09]} 62. Ra7+ {[%emt 0:01:23]} Rc7 {[%emt 0:00:07]} 63. Ra3 {[%emt 0:00:19]} Rb7+ {[%emt 0:00:44]} 64. Kc2 {[%emt 0:00:01]} Nxg3 {[%emt 0:00:26]} 65. Rd3+ {[%emt 0:01:00]} Ke8 {[%emt 0:00:18]} 66. Rd6 {[%emt 0:01:18]} Ke7 {[%emt 0:00:54]} 67. Ra6 {[%emt 0:00:26]} Ne4 {[%emt 0:00:08]} 68. Kd3 {[%emt 0:01:45]} Rd7+ {[%emt 0:01:53]} 69. Kc4 {[%emt 0:01:03]} Rc7+ {[%emt 0:00:25]} 70. Kd3 {[%emt 0:00:50]} Nc3 {[%emt 0:00:38]} 71. Bb6 {[%emt 0:00:34]} Rc6 {[%emt 0:00:25]} 72. Bd8+ {[%emt 0:00:26]} Kxd8 {[%emt 0:01:33]} 73. Rxc6 {[%emt 0:00:08]} Nd5 {[%emt 0:00:07]} 74. Rc4 {[%emt 0:00:27]} Kd7 {[%emt 0:02:19]} 75. Ra4 {[%emt 0:00:28]} Kc6 {[%emt 0:00:50]} 76. Ra6+ {[%emt 0:00:58]} Kb5 {[%emt 0:00:35]} 77. Rd6 {[%emt 0:00:36]} Nxf4+ {[%emt 0:00:17]} 78. Kd4 {[%emt 0:00:27]} Kb4 {[%emt 0:02:58]} 79. Rb6+ {[%emt 0:00:19]} Ka5 {[%emt 0:00:05]} 80. Rb1 {[%emt 0:00:36]} Ng2 {[%emt 0:04:55]} 81. Kc5 {[%emt 0:00:12]} Ka4 {[%emt 0:01:08]} 82. Kd6 {[%emt 0:00:11]} f4 {[%emt 0:03:15]} 83. Kxe6 {[%emt 0:00:09]} Nxh4 {[%emt 0:03:06]} 84. Kf6 {[%emt 0:00:10]} f3 {[%emt 0:03:30]} 85. e6 {[%emt 0:00:23]} Nf5 {[%emt 0:00:42]} 86. Kxg6 {[%emt 0:00:05]} Nd6 {[%emt 0:00:50]} 87. Kxh5 {[%emt 0:00:23]} f2 {[%emt 0:00:29]} 88. e7 {[%emt 0:00:30]} Ka5 {[%emt 0:01:01]} 89. Kg6 {[%emt 0:00:25]} 1-0

[Event "Condigne Dutch Open 2018"]
[Site "Dieren"]
[Date "2018.08.02"]
[Round "9"]
[White "Krishnater Kushager"]
[Black "Maatman, Nick"]
[Result "1/2-1/2"]
[ECO "E10"]
[WhiteElo "2209"]
[BlackElo "2345"]
[Annotator "NA"]
[PlyCount "23"]
[EventDate "2018.07.24"]
[EventType "swiss"]
[EventCountry "NED"]
[SourceTitle "playchess.com"]
[Source "ChessBase"]
[SourceQuality "1"]
[TimeControl "40/5400+30:1800+30"]

1. d4 {[%emt 0:00:00]} e6 {[%emt 0:03:12]} 2. Nf3 {[%emt 0:00:00]} Nf6 {[%emt 0:00:09]} 3. c4 {[%emt 0:00:00]} c5 {[%emt 0:02:30]} 4. d5 {[%emt 0:00:00]} exd5 {[%emt 0:00:04]} 5. cxd5 {[%emt 0:00:00]} d6 {[%emt 0:00:06]} 6. e4 {[%emt 0:00:05]} g6 {[%emt 0:01:07]} 7. h3 {[%emt 0:00:04]} Bg7 {[%emt 0:00:13]} 8. Bd3 {[%emt 0:00:02]} O-O {[%emt 0:00:29]} 9. O-O {[%emt 0:00:04]} b5 {[%emt 0:21:51]} 10. Bxb5 {[%emt 0:00:08]} Nxe4 {[%emt 0:01:36]} 11. Re1 {[%emt 0:00:04]} Qb6 {[%emt 0:02:17]} 12. Na3 {[%emt 0:00:08]} 1/2-1/2

[Event "Condigne Dutch Open 2018"]
[Site "Dieren"]
[Date "2018.08.02"]
[Round "9"]
[White "Floor, Dirk"]
[Black "Ojas Kulkarni"]
[Result "0-1"]
[ECO "C55"]
[WhiteElo "2196"]
[BlackElo "2226"]
[Annotator "NA"]
[PlyCount "74"]
[EventDate "2018.07.24"]
[EventType "swiss"]
[EventCountry "NED"]
[SourceTitle "playchess.com"]
[Source "ChessBase"]
[SourceQuality "1"]
[TimeControl "40/5400+30:1800+30"]

1. e4 {[%emt 1:30:30]} e5 2. Nf3 {[%emt 0:00:30]} Nc6 {[%emt 1:31:00]} 3. Bc4 {[%emt 0:00:30]} Nf6 4. d3 h6 5. O-O d6 6. a4 g6 7. Nc3 Bg7 8. a5 a6 9. Bd2 O-O 10. Nd5 Nxd5 11. Bxd5 Ne7 12. Ba2 Kh7 13. c3 f5 14. h4 Kh8 15. Qc1 f4 16. d4 Nc6 17. Rd1 Bg4 18. d5 Ne7 19. Kf1 c6 20. c4 cxd5 21. cxd5 Rc8 22. Qb1 Nf5 23. Qd3 Nxh4 24. Nxh4 Qxh4 25. f3 Bd7 26. Kg1 g5 27. Be1 Qh5 28. Bb3 Bb5 29. Qd2 g4 30. fxg4 Qxg4 31. Rdc1 Rxc1 32. Rxc1 f3 33. Bd1 Be2 34. g3 Qh3 35. Kf2 Qg2+ 36. Ke3 h5 37. Bf2 Bh6# 0-1